fUSD/lending_fUSD_20260612
["ID","MTS","AMOUNT","RATE_DAILY","PERIOD"]
[424879414,1781231441000,-13473.4382471,0.000195,2]
[424879418,1781231441000,-654.37,0.00019545,2]
[424879420,1781231441000,-1060.54665507,0.00019548,2]
[424879475,1781231441000,-8064.0,0.0002,2]
[424879480,1781231441000,-155.0,0.0002,2]
[424879466,1781231441000,-243.0,0.0002,2]
[424879512,1781231441000,-1328.27659266,0.00020879,2]
[424879516,1781231441000,-1377.42282658,0.00020879,2]
[424879521,1781231441000,-1428.38747117,0.00020879,2]
[424879525,1781231441000,-1481.2378076,0.00020879,2]
[424879523,1781231441000,-500.0,0.00020879,2]
[424879527,1781231441000,-152.0,0.00020879,2]
[424879529,1781231441000,-500.0,0.00020879,2]
[424879531,1781231441000,-1536.04360648,0.00020879,2]
[424879541,1781231441000,-1592.87721992,0.00020879,2]
[424879543,1781231441000,-500.0,0.00020879,2]
[424879546,1781231441000,-151.0,0.00020879,2]
[424879548,1781231441000,-2080.17592889,0.00020879,2]
[424879535,1781231441000,-500.0,0.00020879,2]
[424879537,1781231441000,-151.0,0.00020879,2]
[424879539,1781231441000,-151.0,0.00020879,2]
[424879586,1781231441000,-1651.81367706,0.00020879,2]
[424879464,1781231441000,-244.0,0.0002,2]
[424879518,1781231441000,-500.0,0.00020879,2]
[424879514,1781231441000,-500.0,0.00020879,2]
[424879533,1781231441000,-152.0,0.00020879,2]
[424879508,1781231441000,-1235.18214925,0.00020879,2]
[424879506,1781231441000,-1191.11104074,0.00020879,2]
[424879460,1781231441000,-181.0,0.0002,2]
[424879583,1781231441000,-500.0,0.00020879,2]
[424879482,1781231441000,-347.0,0.0002,2]
[424879485,1781231441000,-2028.52,0.0002,2]
[424879487,1781231441000,-222.0,0.0002,2]
[424879497,1781231441000,-2005.9555727,0.00020331,2]
[424879500,1781231441000,-633.3,0.00020381,2]
[424879468,1781231441000,-155.0,0.0002,2]
[424879489,1781231441000,-203.191362,0.00020091,7]
[424879495,1781231441000,-165.47074,0.00020286,2]
[424879503,1781231441000,-1107.63007,0.00020879,2]
[424879491,1781231441000,-173.99,0.00020209,2]
[424879502,1781231441000,-1068.11,0.00020879,2]
[424879504,1781231441000,-1148.61238259,0.00020879,2]
[424879493,1781231441000,-219.28,0.00020217,2]
[424879501,1781231441000,-1030.0,0.00020879,2]
[424879510,1781231441000,-1280.88388877,0.00020879,2]
[424879677,1781231442000,-175.0,0.00021,2]
[424879685,1781231442000,-222.0,0.00021,2]
[424879675,1781231442000,-907.0,0.00021,2]
[424879671,1781231442000,-243.0,0.00021,2]
[424879669,1781231442000,-244.0,0.00021,2]
[424879673,1781231442000,-155.0,0.00021,2]
[424879663,1781231442000,-464.737018,0.00021,2]
[424879657,1781231442000,-18592.66140742,0.00021,2]
[424879661,1781231442000,-465.0,0.00021,2]
[424879667,1781231442000,-252.0,0.00021,2]
[424879679,1781231442000,-155.0,0.00021,2]
[424879655,1781231442000,-151.0,0.00020989,2]
[424879665,1781231442000,-181.0,0.00021,2]
[424879687,1781231442000,-151.0,0.00021015,2]
[424879701,1781231442000,-151.0,0.00021015,2]
[424879689,1781231442000,-151.0,0.00021015,2]
[424879681,1781231442000,-40091.7629742,0.00021,2]
[424879691,1781231442000,-151.0,0.00021015,2]
[424879693,1781231442000,-200.0,0.00021015,2]
[424879695,1781231442000,-151.0,0.00021015,2]
[424879699,1781231442000,-157.51838458,0.00021015,2]
[424879703,1781231442000,-151.0,0.00021015,2]
[424879705,1781231442000,-151.0,0.00021015,2]
[424879707,1781231442000,-500.0,0.00021015,2]
[424879717,1781231442000,-151.0,0.00021015,2]
[424879713,1781231442000,-151.0,0.00021015,2]
[424879709,1781231442000,-151.0,0.00021015,2]
[424879653,1781231442000,-151.0,0.00020934,2]
[424879683,1781231442000,-347.0,0.00021,2]
[424879659,1781231442000,-227.0,0.00021,2]
[424879599,1781231442000,-151.0,0.00020879,2]
[424879651,1781231442000,-504.0,0.00020896,2]
[424879589,1781231442000,-151.0,0.00020879,2]
[424879592,1781231442000,-152.0,0.00020879,2]
[424879595,1781231442000,-1712.93078311,0.00020879,2]
[424879611,1781231442000,-500.0,0.00020879,2]
[424879597,1781231442000,-500.0,0.00020879,2]
[424879602,1781231442000,-152.0,0.00020879,2]
[424879617,1781231442000,-500.0,0.00020879,2]
[424879604,1781231442000,-151.0,0.00020879,2]
[424879609,1781231442000,-151.0,0.00020879,2]
[424879615,1781231442000,-151.0,0.00020879,2]
[424879715,1781231442000,-500.0,0.00021015,2]
[424879606,1781231442000,-1776.30922209,0.00020879,2]
[424879613,1781231442000,-1842.0326633,0.00020879,2]
[424879649,1781231442000,-152.0,0.00020879,2]
[424879619,1781231442000,-1910.18787185,0.00020879,2]
[424879623,1781231442000,-152.0,0.00020879,2]
[424879627,1781231442000,-1980.8648231,0.00020879,2]
[424879641,1781231442000,-152.0,0.00020879,2]
[424879631,1781231442000,-152.0,0.00020879,2]
[424879635,1781231442000,-151.0,0.00020879,2]
[424879625,1781231442000,-500.0,0.00020879,2]
[424879629,1781231442000,-151.0,0.00020879,2]
[424879633,1781231442000,-2054.15682156,0.00020879,2]
[424879639,1781231442000,-151.0,0.00020879,2]
[424879637,1781231442000,-152.0,0.00020879,2]
[424879647,1781231442000,-152.0,0.00020879,2]
[424879643,1781231442000,-151.0,0.00020879,2]
[424879645,1781231442000,-152.0,0.00020879,2]
[424879621,1781231442000,-151.0,0.00020879,2]
[424879719,1781231442000,-500.0,0.00021015,2]
[424879697,1781231442000,-151.0,0.00021015,2]
[424879726,1781231442000,-151.0,0.00021015,2]
[424879795,1781231442000,-157.51838458,0.00021563,2]
[424879798,1781231442000,-2028.52,0.00021666,2]
[424879785,1781231442000,-151.0,0.00021429,2]
[424879791,1781231442000,-638.06403236,0.00021526,2]
[424879787,1781231442000,-927.98072367,0.000215,2]
[424879796,1781231442000,-151.0,0.00021563,2]
[424879789,1781231442000,-519.17395062,0.000215,2]
[424879800,1781231442000,-927.98072367,0.000217,2]
[424879806,1781231442000,-927.98072367,0.000219,2]
[424879804,1781231442000,-504.0,0.00021791,3]
[424879808,1781231442000,-519.17395062,0.000219,2]
[424879802,1781231442000,-519.17395062,0.000217,2]
[424879809,1781231442000,-5000.0,0.00021918,2]
[424879814,1781231442000,-2236.95670847,0.00021975,2]
[424879820,1781231442000,-465.0,0.00022,2]
[424879812,1781231442000,-150.0,0.00021918,2]
[424879827,1781231442000,-252.0,0.00022,2]
[424879823,1781231442000,-464.737018,0.00022,2]
[424879825,1781231442000,-181.0,0.00022,2]
[424879818,1781231442000,-227.0,0.00022,2]
[424879829,1781231442000,-244.0,0.00022,2]
[424879816,1781231442000,-1500.0,0.00022,10]
[424879832,1781231442000,-243.0,0.00022,2]
[424879836,1781231442000,-907.0,0.00022,2]
[424879834,1781231442000,-155.0,0.00022,2]
[424879711,1781231442000,-500.0,0.00021015,2]
[424879843,1781231442000,-347.0,0.00022,2]
[424879845,1781231442000,-222.0,0.00022,2]
[424879840,1781231442000,-155.0,0.00022,2]
[424879793,1781231442000,-200.0,0.00021563,2]
[424879781,1781231442000,-158.41,0.000214,2]
[424879838,1781231442000,-175.0,0.00022,2]
[424879783,1781231442000,-2157.14243826,0.00021427,2]
[424879779,1781231442000,-151.0,0.00021374,2]
[424879725,1781231442000,-500.0,0.00021015,2]
[424879723,1781231442000,-151.0,0.00021015,2]
[424879728,1781231442000,-500.0,0.00021015,2]
[424879739,1781231442000,-500.0,0.00021015,2]
[424879741,1781231442000,-151.0,0.00021015,2]
[424879733,1781231442000,-151.0,0.00021015,2]
[424879745,1781231442000,-151.0,0.00021015,2]
[424879731,1781231442000,-500.0,0.00021015,2]
[424879743,1781231442000,-500.0,0.00021015,2]
[424879747,1781231442000,-500.0,0.00021015,2]
[424879735,1781231442000,-500.0,0.00021015,2]
[424879737,1781231442000,-151.0,0.00021015,2]
[424879749,1781231442000,-151.0,0.00021015,2]
[424879721,1781231442000,-151.0,0.00021015,2]
[424879753,1781231442000,-151.0,0.00021015,2]
[424879773,1781231442000,-519.17395062,0.000213,2]
[424879769,1781231442000,-215.99183634,0.00021297,2]
[424879771,1781231442000,-927.98072367,0.000213,2]
[424879775,1781231442000,-256.57820982,0.000213,2]
[424879777,1781231442000,-151.0,0.00021319,2]
[424879751,1781231442000,-151.0,0.00021015,2]
[424879767,1781231442000,-151.0,0.00021264,2]
[424879765,1781231442000,-151.0,0.00021209,2]
[424879761,1781231442000,-151.0,0.00021099,2]
[424879763,1781231442000,-151.0,0.00021154,2]
[424879759,1781231442000,-166.98,0.00021087,5]
[424879755,1781231442000,-151.0,0.00021044,2]
[424879757,1781231442000,-628.38564448,0.00021063,2]
[424879935,1781231443000,-221.95,0.00023971,2]
[424879933,1781231443000,-157.51838458,0.00023755,2]
[424879929,1781231443000,-2494.55939288,0.00023619,2]
[424879931,1781231443000,-150.0,0.00023667,2]
[424879917,1781231443000,-336.41476893,0.00023207,2]
[424879915,1781231443000,-500.0,0.00023089,2]
[424879913,1781231443000,-2405.55389863,0.00023071,2]
[424879919,1781231443000,-157.51838458,0.00023207,2]
[424879927,1781231443000,-151.0,0.00023618,2]
[424879911,1781231443000,-222.0,0.00023,2]
[424879909,1781231443000,-150.0,0.00023,2]
[424879945,1781231443000,-465.0,0.00024,2]
[424879943,1781231443000,-227.0,0.00024,2]
[424879937,1781231443000,-1908.81,0.00023971,2]
[424879954,1781231443000,-243.0,0.00024,2]
[424879950,1781231443000,-252.0,0.00024,2]
[424879952,1781231443000,-244.0,0.00024,2]
[424879939,1781231443000,-150.0,0.00023971,2]
[424879948,1781231443000,-181.0,0.00024,2]
[424879941,1781231443000,-803.72,0.00023971,2]
[424879958,1781231443000,-907.0,0.00024,2]
[424879956,1781231443000,-155.0,0.00024,2]
[424879960,1781231443000,-175.0,0.00024,2]
[424879923,1781231443000,-2028.52,0.00023331,7]
[424879975,1781231443000,-1336.74119234,0.00024182,2]
[424879947,1781231443000,-464.737018,0.00024,2]
[424879921,1781231443000,-150.0,0.00023288,2]
[424879874,1781231443000,-157.51838458,0.00022659,2]
[424879902,1781231443000,-175.0,0.00023,2]
[424879962,1781231443000,-168.0,0.00024,2]
[424879847,1781231443000,-200.0,0.00022111,2]
[424879849,1781231443000,-157.51838458,0.00022111,2]
[424879854,1781231443000,-927.98072367,0.000222,2]
[424879856,1781231443000,-519.17395062,0.000222,2]
[424879851,1781231443000,-151.0,0.00022111,2]
[424879858,1781231443000,-633.3,0.00022353,2]
[424879860,1781231443000,-303.68,0.00022466,2]
[424879863,1781231443000,-619.14,0.00022466,2]
[424879871,1781231443000,-200.0,0.00022659,2]
[424879878,1781231443000,-504.0,0.00022687,4]
[424879880,1781231443000,-227.0,0.00023,2]
[424879925,1781231443000,-504.0,0.00023582,5]
[424879865,1781231443000,-2319.72410669,0.00022523,2]
[424879869,1781231443000,-1125.0,0.00022602,2]
[424879882,1781231443000,-465.0,0.00023,2]
[424879887,1781231443000,-181.0,0.00023,2]
[424879891,1781231443000,-628.831389,0.00023,2]
[424879893,1781231443000,-244.0,0.00023,2]
[424879889,1781231443000,-252.0,0.00023,2]
[424879885,1781231443000,-464.737018,0.00023,2]
[424879900,1781231443000,-907.0,0.00023,2]
[424879906,1781231443000,-347.0,0.00023,2]
[424879896,1781231443000,-243.0,0.00023,2]
[424879898,1781231443000,-155.0,0.00023,2]
[424879904,1781231443000,-155.0,0.00023,2]
[424879876,1781231443000,-153.30850377,0.00022659,2]
[424879969,1781231443000,-500.0,0.00024149,2]
[424879867,1781231443000,-150.0,0.0002254,2]
[424879971,1781231443000,-2586.85809042,0.00024167,2]
[424880039,1781231443000,-2724.66273282,0.00024696,2]
[424880041,1781231443000,-653.46316718,0.00024698,7]
[424880043,1781231443000,-2682.57183977,0.00024715,2]
[424880046,1781231443000,-152.0,0.00024719,7]
[424880048,1781231443000,-2724.66273282,0.0002475,2]
[424880050,1781231443000,-2724.66273282,0.00024768,2]
[424880053,1781231443000,-152.0,0.00024769,7]
[424880055,1781231443000,-150.0,0.0002485,2]
[424880057,1781231443000,-157.51838458,0.00024851,2]
[424880059,1781231443000,-508.19111131,0.00024873,2]
[424880061,1781231443000,-151.03,0.00024886,7]
[424880077,1781231443000,-249.24152589,0.00025,2]
[424880037,1781231443000,-157.6,0.00024658,2]
[424880066,1781231443000,-2028.52,0.00024997,7]
[424880064,1781231443000,-157.6,0.00024899,7]
[424880075,1781231443000,-252.0,0.00025,2]
[424880079,1781231443000,-245.36871186,0.00025,2]
[424880081,1781231443000,-911.01337303,0.00025,2]
[424880070,1781231443000,-478.93607242,0.00025,2]
[424880068,1781231443000,-243.78899313,0.00025,2]
[424880083,1781231443000,-186.61590978,0.00025,2]
[424880085,1781231443000,-356.30054521,0.00025,2]
[424880087,1781231443000,-151.03,0.00025115,30]
[424880091,1781231443000,-1060.54665507,0.00025163,2]
[424880089,1781231443000,-157.6,0.0002514,30]
[424879973,1781231443000,-2610.24137566,0.00024168,2]
[424880093,1781231443000,-1120.91833666,0.00025186,2]
[424880035,1781231443000,-151.03,0.00024658,2]
[424880072,1781231443000,-189.36709755,0.00025,2]
[424880031,1781231443000,-1000.0,0.00024658,2]
[424879964,1781231443000,-347.0,0.00024,2]
[424880029,1781231443000,-161.383952,0.00024658,2]
[424879966,1781231443000,-265.72,0.0002411,2]
[424879978,1781231443000,-157.51838458,0.00024303,2]
[424879980,1781231443000,-633.3,0.00024324,2]
[424879982,1781231443000,-2610.24137566,0.00024327,2]
[424879984,1781231443000,-2724.66273282,0.00024328,2]
[424879986,1781231443000,-2724.66273282,0.00024358,2]
[424879995,1781231443000,-8390.0,0.00024463,7]
[424880002,1781231443000,-2724.66273282,0.00024511,2]
[424879988,1781231443000,-9685.75615428,0.00024361,2]
[424879990,1781231443000,-2724.66273282,0.00024424,2]
[424879997,1781231443000,-504.0,0.00024478,6]
[424879992,1781231443000,-1887.45,0.00024462,2]
[424880004,1781231443000,-2724.66273282,0.00024552,2]
[424880033,1781231443000,-151.29953402,0.00024658,2]
[424879999,1781231443000,-2724.66273282,0.00024482,2]
[424880026,1781231443000,-151.0,0.00024658,2]
[424880022,1781231443000,-2237.93479141,0.00024646,2]
[424880017,1781231443000,-567.49,0.00024622,7]
[424880020,1781231443000,-628.38564448,0.00024628,2]
[424880024,1781231443000,-937.0010001,0.00024646,2]
[424880013,1781231443000,-276.64,0.0002458,2]
[424880010,1781231443000,-854.43,0.0002458,2]
[424880008,1781231443000,-2724.66273282,0.00024556,2]
[424880006,1781231443000,-2724.66273282,0.00024553,2]
[424880015,1781231443000,-2724.66273282,0.00024618,2]
[424880180,1781231444000,-151.0,0.00026384,2]
[424880173,1781231444000,-633.3,0.00026296,2]
[424880171,1781231444000,-150.0,0.00026093,2]
[424880145,1781231444000,-7592.37667733,0.00025627,2]
[424880175,1781231444000,-151.0,0.00026384,2]
[424880170,1781231444000,-297.23,0.00026027,7]
[424880168,1781231444000,-205.98,0.00026027,7]
[424880166,1781231444000,-1000.0,0.00026,2]
[424880160,1781231444000,-1313.44291592,0.00025901,2]
[424880174,1781231444000,-151.0,0.00026357,2]
[424880172,1781231444000,-504.0,0.00026269,8]
[424880178,1781231444000,-151.0,0.00026384,2]
[424880204,1781231444000,-157.51838458,0.00026495,2]
[424880186,1781231444000,-151.0,0.00026384,2]
[424880176,1781231444000,-151.0,0.00026384,2]
[424880184,1781231444000,-151.0,0.00026384,2]
[424880188,1781231444000,-151.0,0.00026384,2]
[424880198,1781231444000,-151.0,0.00026384,2]
[424880200,1781231444000,-257.25612,0.00026384,2]
[424880190,1781231444000,-151.0,0.00026384,2]
[424880192,1781231444000,-151.0,0.00026384,2]
[424880194,1781231444000,-151.0,0.00026384,2]
[424880202,1781231444000,-1664.82519544,0.0002647,2]
[424880195,1781231444000,-151.0,0.00026384,2]
[424880206,1781231444000,-500.0,0.00026603,2]
[424880155,1781231444000,-157.6,0.00025864,30]
[424880182,1781231444000,-151.0,0.00026384,2]
[424880157,1781231444000,-159.0,0.00025868,2]
[424880102,1781231444000,-3876.534432,0.00025254,2]
[424880164,1781231444000,-323.0,0.00026,5]
[424880100,1781231444000,-156.58,0.000252,7]
[424880208,1781231444000,-2028.52,0.00026663,7]
[424880097,1781231444000,-1120.91833666,0.00025197,2]
[424880104,1781231444000,-1120.91833666,0.00025262,2]
[424880095,1781231444000,-1120.91833666,0.00025194,2]
[424880106,1781231444000,-2781.82699784,0.00025263,2]
[424880111,1781231444000,-7592.37667733,0.00025289,2]
[424880108,1781231444000,-3352.6774126,0.00025284,2]
[424880113,1781231444000,-3876.534432,0.00025336,2]
[424880127,1781231444000,-3352.6774126,0.00025429,2]
[424880123,1781231444000,-1120.91833666,0.00025385,2]
[424880125,1781231444000,-157.51838458,0.00025399,2]
[424880129,1781231444000,-1120.91833666,0.00025448,2]
[424880131,1781231444000,-1120.91833666,0.00025491,2]
[424880115,1781231444000,-151.03,0.00025343,2]
[424880117,1781231444000,-664.05501123,0.00025356,2]
[424880119,1781231444000,-504.0,0.00025373,7]
[424880133,1781231444000,-1120.91833666,0.00025498,2]
[424880135,1781231444000,-1120.91833666,0.00025514,2]
[424880121,1781231444000,-157.6,0.00025381,2]
[424880139,1781231444000,-1120.91833666,0.00025551,2]
[424880153,1781231444000,-1115.16666655,0.00025811,2]
[424880162,1781231444000,-157.51838458,0.00025947,2]
[424880151,1781231444000,-151.03,0.000258,30]
[424880149,1781231444000,-1313.44291592,0.00025731,2]
[424880147,1781231444000,-1664.82519544,0.00025694,2]
[424880141,1781231444000,-151.03,0.00025572,7]
[424880143,1781231444000,-157.6,0.00025622,7]
[424880211,1781231444000,-158.41,0.000269,7]
[424880137,1781231444000,-1120.91833666,0.0002554,2]
[424880215,1781231444000,-1313.44291592,0.00026977,2]
[424880273,1781231444000,-338.209091,0.00027397,2]
[424880265,1781231444000,-338.209091,0.00027397,2]
[424880288,1781231444000,-338.209091,0.00027397,2]
[424880290,1781231444000,-338.209091,0.00027397,2]
[424880292,1781231444000,-338.209091,0.00027397,2]
[424880299,1781231444000,-338.209091,0.00027397,2]
[424880305,1781231444000,-338.209097,0.00027397,2]
[424880301,1781231444000,-338.209091,0.00027397,2]
[424880295,1781231444000,-338.209091,0.00027397,2]
[424880297,1781231444000,-338.209091,0.00027397,2]
[424880307,1781231444000,-2683.1,0.00027397,10]
[424880303,1781231444000,-338.209091,0.00027397,2]
[424880309,1781231444000,-4189.22,0.00027397,10]
[424880312,1781231444000,-150.0,0.00027398,2]
[424880318,1781231444000,-153.56,0.0002755,2]
[424880322,1781231444000,-165.73,0.0002755,30]
[424880314,1781231444000,-3513.32,0.00027521,120]
[424880316,1781231444000,-253.69,0.0002755,30]
[424880324,1781231444000,-165.82,0.0002755,30]
[424880327,1781231444000,-157.51838458,0.00027591,2]
[424880336,1781231444000,-411.53320265,0.00027701,2]
[424880333,1781231444000,-153.56,0.00027646,30]
[424880335,1781231444000,-153.56,0.00027695,2]
[424880329,1781231444000,-212.0,0.00027593,2]
[424880331,1781231444000,-153.56,0.00027598,7]
[424880338,1781231444000,-253.69,0.00027711,7]
[424880213,1781231444000,-3513.32,0.00026945,120]
[424880286,1781231444000,-338.209091,0.00027397,2]
[424880269,1781231444000,-338.209091,0.00027397,2]
[424880320,1781231444000,-162.53,0.0002755,30]
[424880267,1781231444000,-338.209091,0.00027397,2]
[424880271,1781231444000,-338.209091,0.00027397,2]
[424880221,1781231444000,-156.58,0.000271,7]
[424880226,1781231444000,-221.62797765,0.00027267,7]
[424880230,1781231444000,-937.0,0.00027308,10]
[424880217,1781231444000,-1313.44291592,0.00027019,2]
[424880219,1781231444000,-157.51838458,0.00027043,2]
[424880235,1781231444000,-158.11753104,0.00027319,7]
[424880233,1781231444000,-161.91963537,0.00027319,7]
[424880223,1781231444000,-504.0,0.00027164,8]
[424880237,1781231444000,-195.90345677,0.00027319,7]
[424880239,1781231444000,-200.86973246,0.00027319,7]
[424880250,1781231444000,-1229.417,0.00027339,2]
[424880252,1781231444000,-1362.559,0.00027339,2]
[424880228,1781231444000,-1969.5,0.00027267,7]
[424880257,1781231444000,-500.0,0.00027397,20]
[424880284,1781231444000,-338.209091,0.00027397,2]
[424880241,1781231444000,-159.11597075,0.00027319,7]
[424880279,1781231444000,-338.209091,0.00027397,2]
[424880281,1781231444000,-338.209091,0.00027397,2]
[424880275,1781231444000,-338.209091,0.00027397,2]
[424880263,1781231444000,-760.29,0.00027397,20]
[424880277,1781231444000,-338.209091,0.00027397,2]
[424880245,1781231444000,-1275.0,0.00027339,2]
[424880259,1781231444000,-539.99141558,0.00027397,20]
[424880261,1781231444000,-1500.0,0.00027397,2]
[424880254,1781231444000,-500.0,0.00027397,20]
[424880248,1781231444000,-383.0,0.00027339,2]
[424880243,1781231444000,-164.18679739,0.00027319,7]
[424880400,1781231445000,-253.69,0.00028194,7]
[424880397,1781231445000,-1085.91,0.00028193,6]
[424880404,1781231445000,-165.73,0.00028194,7]
[424880388,1781231445000,-153.66,0.0002813,2]
[424880402,1781231445000,-162.53,0.00028194,7]
[424880393,1781231445000,-165.81,0.00028171,30]
[424880391,1781231445000,-157.51838458,0.00028139,2]
[424880395,1781231445000,-628.38564448,0.00028193,2]
[424880430,1781231445000,-224326.1264372,0.00028489,2]
[424880412,1781231445000,-2028.52,0.00028329,7]
[424880410,1781231445000,-165.82,0.00028275,30]
[424880408,1781231445000,-633.3,0.00028267,2]
[424880417,1781231445000,-253.69,0.00028355,2]
[424880415,1781231445000,-776.02,0.00028337,6]
[424880432,1781231445000,-2057.4463123,0.00028491,2]
[424880426,1781231445000,-776.02,0.00028433,5]
[424880387,1781231445000,-4573.85182024,0.00028111,2]
[424880406,1781231445000,-1164.01,0.00028215,5]
[424880384,1781231445000,-3513.32,0.00028096,120]
[424880358,1781231445000,-165.73,0.00027872,2]
[424880377,1781231445000,-165.73,0.00028033,30]
[424880419,1781231445000,-162.53,0.00028355,2]
[424880351,1781231445000,-667.49541002,0.00027862,2]
[424880349,1781231445000,-153.56,0.0002784,2]
[424880353,1781231445000,-253.69,0.00027872,2]
[424880347,1781231445000,-153.56,0.00027791,30]
[424880356,1781231445000,-162.53,0.00027872,2]
[424880343,1781231445000,-165.73,0.00027711,7]
[424880341,1781231445000,-162.53,0.00027711,7]
[424880382,1781231445000,-153.56,0.00028081,30]
[424880345,1781231445000,-153.56,0.00027743,7]
[424880362,1781231445000,-152.0,0.00027914,3]
[424880364,1781231445000,-153.56,0.00027936,30]
[424880366,1781231445000,-153.56,0.00027985,2]
[424880375,1781231445000,-153.56,0.00028033,7]
[424880380,1781231445000,-504.0,0.0002806,9]
[424880373,1781231445000,-162.53,0.00028033,30]
[424880368,1781231445000,-160.0,0.00028,10]
[424880371,1781231445000,-253.69,0.00028033,30]
[424880360,1781231445000,-153.56,0.00027888,7]
[424880423,1781231445000,-573.17,0.00028419,2]
[424880421,1781231445000,-165.73,0.00028355,2]
[424880436,1781231445000,-1641.4304022,0.00028497,2]
[424880484,1781231445000,-150.0,0.00028767,2]
[424880525,1781231445000,-304.0,0.000289,2]
[424880527,1781231445000,-7260.98951181,0.00028909,2]
[424880530,1781231445000,-504.0,0.00028955,10]
[424880532,1781231445000,-168.76003865,0.00028971,2]
[424880521,1781231445000,-253.69,0.00028838,2]
[424880518,1781231445000,-201.0,0.0002882,30]
[424880523,1781231445000,-1348.02,0.00028879,2]
[424880477,1781231445000,-776.02,0.00028692,11]
[424880545,1781231445000,-10000.0,0.00029,2]
[424880539,1781231445000,-166.55,0.00029,2]
[424880534,1781231445000,-1348.02,0.0002899,15]
[424880536,1781231445000,-1137.0,0.00029,2]
[424880547,1781231445000,-9021.0,0.00029,2]
[424880553,1781231445000,-10000.0,0.00029,2]
[424880550,1781231445000,-15139.3883275,0.00029,2]
[424880552,1781231445000,-10000.0,0.00029,2]
[424880428,1781231445000,-88572.1017762,0.00028481,2]
[424880541,1781231445000,-10259.8472554,0.00029,2]
[424880475,1781231445000,-157.51838458,0.00028687,2]
[424880543,1781231445000,-500.088,0.00029,2]
[424880467,1781231445000,-328.37359477,0.00028611,7]
[424880434,1781231445000,-41354.5093137,0.00028491,2]
[424880470,1781231445000,-3513.32,0.0002863,120]
[424880450,1781231445000,-209.859436,0.00028608,7]
[424880439,1781231445000,-253.69,0.00028516,30]
[424880443,1781231445000,-162.53,0.00028516,30]
[424880441,1781231445000,-165.82,0.00028516,7]
[424880458,1781231445000,-391.80691355,0.0002861,7]
[424880452,1781231445000,-153.72627427,0.0002861,7]
[424880445,1781231445000,-165.73,0.00028516,30]
[424880447,1781231445000,-158.41,0.000286,7]
[424880456,1781231445000,-316.23506208,0.0002861,7]
[424880460,1781231445000,-401.73946491,0.0002861,7]
[424880462,1781231445000,-318.23194151,0.00028611,7]
[424880464,1781231445000,-203.34112715,0.00028611,7]
[424880479,1781231445000,-1887.45,0.00028731,7]
[424880482,1781231445000,-165.82,0.00028758,2]
[424880454,1781231445000,-323.83927074,0.0002861,7]
[424880469,1781231445000,-218.17842133,0.00028611,7]
[424880473,1781231445000,-253.69,0.00028677,7]
[424880615,1781231446000,-150.0,0.0002946,2]
[424880636,1781231446000,-477.34791226,0.00029472,7]
[424880633,1781231446000,-602.60919737,0.00029471,7]
[424880640,1781231446000,-492.56039216,0.00029472,7]
[424880631,1781231446000,-587.71037032,0.00029471,7]
[424880626,1781231446000,-485.75890611,0.00029471,7]
[424880638,1781231446000,-406.6822543,0.00029472,7]
[424880624,1781231446000,-307.45254854,0.00029471,7]
[424880611,1781231446000,-265.0,0.00029317,2]